fUSD/lending_fUSD_20251113
["ID","MTS","AMOUNT","RATE_DAILY","PERIOD"]
[393793345,1762995032332,-151.0,0.00017989,2]
[393793346,1762995032342,-151.0,0.00017989,2]
[393793347,1762995032351,-151.0,0.00017989,2]
[393793348,1762995032360,-151.0,0.00017989,2]
[393793349,1762995032369,-151.0,0.00017989,2]
[393793351,1762995032379,-151.0,0.00017989,2]
[393793353,1762995032388,-151.0,0.00017989,2]
[393793355,1762995032396,-151.0,0.00017989,2]
[393793357,1762995032405,-151.0,0.00017989,2]
[393793359,1762995032420,-151.0,0.00017989,2]
[393793361,1762995032429,-151.0,0.00017989,2]
[393793363,1762995032438,-1386.64650829,0.00017998,2]
[393793365,1762995032449,-3133.03609757,0.00017998,2]
[393793367,1762995032461,-2140.38278782,0.00017998,2]
[393793370,1762995032473,-4754.8396003,0.00017998,2]
[393793372,1762995032484,-3132.27733177,0.00017998,2]
[393793374,1762995032497,-116403.40009965,0.00017998,2]
[393793376,1762995032507,-527.80203841,0.00017999,2]
[393793379,1762995032515,-183.69568692,0.00017999,2]
[393793382,1762995032525,-326.80210895,0.00017999,2]
[393793384,1762995032534,-500.0,0.00017999,2]
[393793387,1762995032543,-300.0,0.00017999,2]
[393793390,1762995032551,-300.0,0.00017999,2]
[393793393,1762995032561,-500.0,0.00017999,2]
[393793396,1762995032570,-500.0,0.00017999,2]
[393793399,1762995032580,-500.0,0.00017999,2]
[393793401,1762995032589,-500.0,0.00017999,2]
[393793420,1762995032754,-500.0,0.00017999,2]
[393793422,1762995032763,-500.0,0.00017999,2]
[393793424,1762995032773,-500.0,0.00017999,2]
[393793426,1762995032783,-500.0,0.00017999,2]
[393793428,1762995032792,-500.0,0.00017999,2]
[393793430,1762995032801,-500.0,0.00017999,2]
[393793432,1762995032810,-500.0,0.00017999,2]
[393793434,1762995032820,-499.98999646,0.00017999,2]
[393793436,1762995032829,-500.0,0.00017999,2]
[393793438,1762995032838,-500.0,0.00017999,2]
[393793440,1762995032847,-500.0,0.00017999,2]
[393793442,1762995032857,-500.0,0.00017999,2]
[393793444,1762995032866,-500.0,0.00017999,2]
[393793445,1762995032876,-3189.20355,0.00017999,2]
[393793447,1762995032885,-500.0,0.00017999,2]
[393793449,1762995032895,-500.0,0.00017999,2]
[393793451,1762995032904,-500.0,0.00017999,2]
[393793453,1762995032914,-550.62677967,0.00017999,2]
[393793455,1762995032923,-500.0,0.00017999,2]
[393793457,1762995032933,-500.0,0.00017999,2]
[393793459,1762995032942,-500.0,0.00017999,2]
[393793461,1762995032951,-500.0,0.00017999,2]
[393793463,1762995032960,-307.45218061,0.00017999,2]
[393793465,1762995032970,-500.0,0.00017999,2]
[393793467,1762995032980,-179.6268749,0.00017999,2]
[393793469,1762995032989,-230.31668166,0.00017999,2]
[393793471,1762995032998,-500.0,0.00017999,2]
[393793473,1762995033007,-500.0,0.00017999,2]
[393793475,1762995033016,-500.0,0.00017999,2]
[393793477,1762995033025,-500.0,0.00017999,2]
[393793479,1762995033034,-500.0,0.00017999,2]
[393793481,1762995033043,-500.0,0.00017999,2]
[393793483,1762995033052,-500.0,0.00017999,2]
[393793485,1762995033061,-500.0,0.00017999,2]
[393793487,1762995033070,-235.58027349,0.00017999,2]
[393793489,1762995033079,-500.0,0.00017999,2]
[393793491,1762995033089,-354.02964418,0.00017999,2]
[393793493,1762995033097,-311.72007248,0.00017999,2]
[393793495,1762995033106,-33795.63040006,0.00018,2]
[393793497,1762995033118,-59981.63347043,0.00018,2]
[393793499,1762995033129,-304.35354436,0.00018,2]
[393793503,1762995033155,-2082.37526384,0.00018,2]
[393793505,1762995033166,-776.28283243,0.00018,2]
[393793507,1762995033176,-555.66208952,0.00018,2]
[393793509,1762995033187,-250.0,0.00018,2]
[393793511,1762995033198,-1298.40002087,0.00018,2]
[393793514,1762995033208,-624.07441778,0.00018,2]
[393793516,1762995033220,-300.49979011,0.00018,2]
[393793624,1762995037933,-47190.90768854,0.00018,2]
[393793625,1762995037943,-176.9127376,0.00018,2]
[393793626,1762995037952,-22766.9886807,0.00018,2]
[393793627,1762995037961,-35597.130329,0.00018,2]
[393793628,1762995037971,-3371.2819694,0.00018,2]
[393793630,1762995037982,-306.4596691,0.00018,2]
[393793631,1762995037992,-159.40146688,0.00018048,2]
[393793632,1762995038001,-1000.0,0.00018082,2]
[393793634,1762995038011,-707.75,0.00018247,2]
[393793636,1762995038020,-150.0,0.00018322,2]
[393793637,1762995038030,-200.0,0.00018334,2]
[393793639,1762995038040,-2324.38,0.00018364,2]
[393793641,1762995038049,-200.0,0.00018364,2]
[393793642,1762995038059,-1329.28,0.00018375,2]
[393793643,1762995038068,-500.0,0.00018521,2]
[393793644,1762995038078,-547.26709006,0.00018521,2]
[393793645,1762995038088,-707.75,0.00018521,2]
[393793646,1762995038098,-1852.42,0.00018532,2]
[393793647,1762995038107,-999.0,0.00018555,3]
[393793648,1762995038116,-150.0,0.00018609,2]
[393793649,1762995038126,-250.0,0.000187,2]
[393793650,1762995038136,-195.0,0.000187,2]
[393793651,1762995038145,-329.23770299,0.000187,2]
[393793652,1762995038154,-1000.0,0.0001876,2]
[393793653,1762995038165,-707.75,0.00018795,2]
[393793654,1762995038174,-384.65,0.00018826,2]
[393793655,1762995038184,-4202.29215761,0.00019,2]
[393793656,1762995038195,-800.89686854,0.00019,2]
[393793657,1762995038205,-300.0,0.00019,2]
[393793658,1762995038216,-707.75,0.00019068,2]
[393793659,1762995038226,-300.0,0.00019112,2]
[393793660,1762995038236,-707.75,0.00019342,2]
[393793661,1762995038246,-1000.0,0.00019438,2]
[393793662,1762995038256,-420.0,0.00019531,2]
[393793663,1762995038266,-195.0,0.0001959,2]
[393793664,1762995038276,-340.90982863,0.0001959,2]
[393793666,1762995038286,-193.0,0.0001959,2]
[393793668,1762995038295,-300.0,0.0001959,2]
[393793670,1762995038305,-250.0,0.0001959,2]
[393793672,1762995038314,-195.0,0.0001959,2]
[393793674,1762995038323,-195.0,0.0001959,2]
[393793677,1762995038334,-707.75,0.00019616,2]
[393793679,1762995038343,-1680.0,0.00019627,2]
[393793680,1762995038353,-500.0,0.00019673,2]
[393793683,1762995038362,-500.0,0.00019673,2]
[393793684,1762995038371,-57306.8590586,0.00019673,2]
[393793686,1762995038380,-195.0,0.00019689,2]
[393793688,1762995038389,-275.86139825,0.00019689,2]
[393793690,1762995038399,-384.65,0.00019817,2]
[393793692,1762995038408,-707.77411188,0.0001989,2]
[393793694,1762995038420,-500.0,0.00019899,2]
[393793696,1762995038431,-237.55008129,0.00019899,2]
[393793698,1762995038440,-500.0,0.00019899,2]
[393793700,1762995038449,-500.0,0.00019899,2]
[393793703,1762995038459,-500.0,0.00019899,2]
[393793705,1762995038469,-400.0,0.000199,7]
[393793707,1762995038480,-306.4596691,0.00019961,2]
[393793709,1762995038490,-567.21962,0.00019973,2]
[393793711,1762995038500,-500.0,0.00019973,2]
[393793712,1762995038509,-500.0,0.00019973,2]
[393793715,1762995038519,-500.0,0.00019973,2]
[393793717,1762995038528,-166.73362346,0.00019973,2]
[393793718,1762995038538,-499.60830963,0.00019973,2]
[393793721,1762995038547,-150.00946095,0.00019973,2]
[393793723,1762995038557,-503.74726495,0.00019973,2]
[393793724,1762995038566,-200.0,0.00019973,2]
[393793726,1762995038575,-500.0,0.00019973,2]
[393793729,1762995038585,-500.0,0.00019973,2]
[393793731,1762995038594,-500.0,0.00019973,2]
[393793732,1762995038604,-500.0,0.00019973,2]
[393793734,1762995038613,-3371.2819694,0.00019978,2]
[393793736,1762995038623,-500.0,0.00019999,2]
[393793738,1762995038632,-3189.20355,0.00019999,2]
[393793740,1762995038641,-1025.91357383,0.0002,2]
[393793742,1762995038651,-25378.61501655,0.0002,2]
[393793745,1762995038661,-83203.75383374,0.0002,5]
[393793747,1762995038670,-100000.0,0.0002,7]
[393793748,1762995038679,-500.0,0.00020016,2]
[393793750,1762995038688,-500.0,0.00020016,2]
[393793753,1762995038698,-22766.9886807,0.00020017,2]
[393793755,1762995038708,-176.9127376,0.00020047,2]
[393793757,1762995038717,-1000.0,0.00020116,2]
[393793758,1762995038726,-500.0,0.00020221,2]
[393793759,1762995038735,-500.0,0.00020221,2]
[393793760,1762995038744,-12786.8886393,0.00020316,2]
[393793761,1762995038755,-130950.5824254,0.00020355,2]
[393793762,1762995038769,-500.0,0.00020373,2]
[393793763,1762995038778,-150.0,0.00020373,2]
[393793764,1762995038788,-150.15698566,0.00020373,2]
[393793765,1762995038797,-162.34780758,0.00020373,2]
[393793772,1762995038806,-35597.130329,0.00020393,2]
[393793775,1762995038946,-29480.25957989,0.00020415,2]
[393793777,1762995038955,-221.45637081,0.00020415,2]
[393793779,1762995038965,-300.0,0.00020482,2]
[393793781,1762995038976,-1001.29157075,0.00020521,2]
[393793783,1762995038986,-1000.0,0.00020521,2]
[393793785,1762995038996,-1000.0,0.00020521,2]
[393793787,1762995039006,-504.76484986,0.00020521,2]
[393793789,1762995039016,-217.33,0.00020536,2]
[393793791,1762995039025,-400.0,0.00020658,2]
[393793793,1762995039035,-1000.0,0.00020795,2]
[393793795,1762995039045,-384.65,0.00020808,2]
[393793797,1762995039055,-649.28343882,0.00020921,2]
[393793799,1762995039066,-182.78404564,0.00020921,2]
[393793801,1762995039076,-296.57105252,0.00020955,2]
[393793803,1762995039085,-10845.37217229,0.00021,2]
[393793805,1762995039098,-1182.7809503,0.00021,2]
[393793807,1762995039107,-195.23470368,0.00021,2]
[393793809,1762995039116,-350.0,0.00021,2]
[393793811,1762995039126,-500.0,0.00021068,2]
[393793814,1762995039136,-1296.65970148,0.00021068,2]
[393793816,1762995039146,-1500.0,0.00021068,2]
[393793818,1762995039156,-600.0,0.00021342,2]
[393793820,1762995039166,-311.50346792,0.00021499,2]
[393793822,1762995039177,-500.0,0.00021499,2]
[393793824,1762995039187,-2148.96325692,0.000215,2]
[393793826,1762995039196,-2351.0,0.00021523,2]
[393793828,1762995039206,-515.44652778,0.00021616,2]
[393793830,1762995039215,-384.65,0.00021798,2]
[393793832,1762995039224,-501.05520094,0.0002182,2]
[393793834,1762995039233,-500.0,0.0002182,2]
[393793836,1762995039243,-5000.0,0.00021918,2]
[393793838,1762995039252,-306.4596691,0.00021923,2]
[393793840,1762995039261,-150.0,0.0002195,2]
[393793842,1762995039270,-500.0,0.00021956,2]
[393793844,1762995039280,-3371.2819694,0.00021957,2]
[393793846,1762995039289,-3189.20355,0.00021999,2]
[393793848,1762995039298,-35713.95136073,0.00022,4]
[393793850,1762995039307,-700.0,0.00022027,2]
[393793851,1762995039317,-22766.9886807,0.00022034,2]
[393793854,1762995039326,-176.9127376,0.00022093,2]
[393793856,1762995039335,-500.0,0.00022219,2]
[393793857,1762995039344,-231.42602229,0.00022368,2]
[393793860,1762995039354,-250.0,0.00022498,2]
[393793862,1762995039363,-130950.5824254,0.00022711,2]
[393793864,1762995039372,-150.38,0.00022776,2]
[393793865,1762995039382,-683.13022332,0.00022776,2]
[393793867,1762995039391,-500.0,0.00022786,2]
[393793869,1762995039401,-35597.130329,0.00022786,2]
[393793871,1762995039411,-384.65,0.00022789,2]
[393793874,1762995039424,-800.0,0.000229,8]
[393793875,1762995039434,-29480.25957989,0.00022929,2]
[393793877,1762995039443,-221.45637081,0.00022929,2]
[393793880,1762995039454,-350.0,0.00023046,2]
[393793882,1762995039464,-450.0,0.00023594,2]
[393793884,1762995039473,-3292.0,0.00023601,2]
[393793885,1762995039483,-384.65,0.0002378,2]
[393793886,1762995039494,-306.4596691,0.00023884,2]
[393793887,1762995039503,-3371.2819694,0.00023935,2]
[393793888,1762995039511,-3189.20355,0.00023999,2]
[393793889,1762995039522,-22766.9886807,0.0002405,2]
[393793890,1762995039531,-176.9127376,0.0002414,2]
[393793891,1762995039540,-550.0,0.00024142,2]
[393793892,1762995039549,-156.84,0.00024658,2]
[393793893,1762995039558,-183.17239134,0.0002469,2]
[393793894,1762995039567,-384.65,0.00024771,2]
[393793895,1762995039577,-500.0,0.00024799,2]
[393793896,1762995039586,-204.79671337,0.000248,2]
[393793897,1762995039596,-168.73726053,0.000248,2]
[393793898,1762995039606,-477.83185661,0.00024899,2]
[393793899,1762995039615,-500.0,0.00024899,2]
[393793900,1762995039625,-1300.0,0.000249,9]
[393793901,1762995039635,-310352.747471,0.000249,3]
[393793902,1762995039645,-7242.92043941,0.00025,10]
[393793903,1762995039654,-53510.52,0.00025,7]
[393793904,1762995039663,-130950.5824254,0.00025068,2]
[393793905,1762995039672,-500.0,0.00025179,2]
[393793906,1762995039682,-35597.130329,0.0002518,2]
[393793907,1762995039691,-29480.25957989,0.00025444,2]
[393793908,1762995039701,-221.45637081,0.00025444,2]
[393793909,1762995039711,-1329.28,0.00025724,2]
[393793910,1762995039722,-384.65,0.00025762,2]
[393793911,1762995039732,-4609.0,0.00025881,2]
[393793912,1762995039741,-3189.20355,0.00025999,2]
[393793913,1762995039752,-2000.0,0.00026,2]
[393793914,1762995039761,-500.0,0.00026,2]
[393793915,1762995039770,-384.65,0.00026753,2]
[393793916,1762995039780,-2505.75,0.00027397,2]
[393793917,1762995039788,-204.79671333,0.00027436,2]
[393793918,1762995039797,-150.0,0.00027629,2]
[393793919,1762995039806,-220.19402456,0.0002779,2]
[393793920,1762995039816,-150.0,0.00027894,2]
[393793921,1762995039826,-29480.25957989,0.00027958,2]
[393793923,1762995039835,-221.45637081,0.00027959,2]
[393793924,1762995039851,-220.19402457,0.00027959,2]
[393793926,1762995039860,-3189.20355,0.00027999,2]
[393793928,1762995039870,-478.56668374,0.0002804,2]
[393793930,1762995039880,-217.33,0.00028247,2]
[393793932,1762995039889,-6453.0,0.00028381,2]
[393793934,1762995039898,-168.7372605,0.0002875,2]
[393793936,1762995039908,-160.0,0.00029084,2]
[393793938,1762995039918,-591.48,0.000292,7]
[393793940,1762995039927,-1220.61,0.00029246,2]
[393793942,1762995039937,-332.6,0.000293,7]
[393793944,1762995039946,-2000.0,0.000297,2]
[393793946,1762995039955,-175.98,0.00030029,2]
[393793948,1762995039965,-204.79671333,0.00030073,2]
[393793950,1762995039974,-156.84,0.00030137,2]
[393793952,1762995039984,-1220.61,0.00030263,2]
[393793954,1762995039992,-199.0,0.0003041,7]
[393793956,1762995040002,-29480.25957989,0.00030473,2]
[393793958,1762995040011,-221.45637081,0.00030473,15]
[393793961,1762995040024,-18603.0,0.00030916,2]
[393793963,1762995040035,-61767.48812606,0.0003095,2]
[393793965,1762995040044,-199.0,0.00030958,8]
[393793967,1762995040054,-2664.0,0.00031122,3]
[393793968,1762995040063,-1220.61,0.00031279,2]
[393793971,1762995040072,-500.0,0.00031361,7]
[393793973,1762995040082,-9999.99,0.00031426,2]
[393793975,1762995040091,-150.99,0.00031426,2]
[393793976,1762995040100,-1017.18,0.00031426,2]
[393793979,1762995040110,-2516.0,0.00031426,2]
[393793980,1762995040120,-4039.77,0.00031426,2]
[393793983,1762995040130,-9999.99,0.00031426,2]
[393793985,1762995040140,-199.0,0.00031506,9]
[393793987,1762995040149,-504.63,0.00032,2]
[393793989,1762995040158,-199.0,0.00032054,10]
[393793991,1762995040167,-1220.61,0.00032295,2]
[393793993,1762995040176,-262.06611401,0.00032333,2]
[393793995,1762995040185,-199.0,0.00032602,11]
[393793997,1762995040195,-168.7372605,0.00032699,4]
[393793999,1762995040205,-204.79671333,0.00032709,2]
[393794001,1762995040215,-29480.25957989,0.00032987,2]
[393794003,1762995040224,-221.45637081,0.00032988,15]
[393794005,1762995040233,-771.252,0.00033005,34]
[393794007,1762995040244,-2849.0,0.00033028,5]
[393794009,1762995040253,-199.0,0.0003315,12]
[393794011,1762995040262,-210.49939748,0.0003316,2]
[393794013,1762995040271,-2541.17,0.00033245,2]
[393794015,1762995040279,-1220.61,0.00033312,2]
[393794017,1762995040288,-217.33,0.0003332,2]
[393794019,1762995040298,-2000.0,0.000334,2]
[393794021,1762995040307,-199.0,0.00033698,13]
[393794023,1762995040315,-591.48,0.000337,14]
[393794025,1762995040325,-3992.72,0.00033814,2]
[393794027,1762995040334,-199.0,0.00034246,14]
[393794029,1762995040343,-221.41930449,0.00034267,2]
[393794031,1762995040353,-1220.61,0.00034328,2]
[393794033,1762995040362,-197.6211987,0.00034794,15]
[393794035,1762995040371,-5516.0,0.000349,5]
[393794037,1762995040380,-1220.61,0.00035345,2]
[393794039,1762995040389,-204.79671333,0.00035345,2]
[393794041,1762995040398,-500.0,0.00035371,30]
[393794043,1762995040411,-332.6,0.000354,30]
[393794045,1762995040423,-29480.25957989,0.00035502,2]
[393794047,1762995040432,-221.45637081,0.00035503,15]
[393794049,1762995040443,-20069.43514653,0.0003561,120]
[393794051,1762995040452,-490.92540579,0.00035616,7]
[393794053,1762995040463,-999.0,0.00035616,120]
[393794055,1762995040472,-1000.0,0.00035616,5]
[393794057,1762995040482,-156.84,0.00035616,2]
[393794059,1762995040491,-174.04,0.0003586,120]
[393794061,1762995040502,-1274.63,0.00036,2]
[393794063,1762995040513,-8939.41841322,0.00036,120]
[393794064,1762995040522,-523.410439,0.00036127,30]
[393794065,1762995040532,-395.25909271,0.00036258,30]
[393794066,1762995040541,-1868.0,0.00036266,120]
[393794067,1762995040551,-2530.68,0.00036309,2]
[393794068,1762995040560,-1220.61,0.00036361,2]
[393794069,1762995040569,-380.31921265,0.00036404,2]
[393794070,1762995040579,-999.0,0.00036438,120]
[393794071,1762995040588,-152.0,0.00036489,3]
[393794072,1762995040599,-150.0,0.00036567,7]
[393794073,1762995040608,-150.38,0.00036569,2]
[393794074,1762995040618,-328.57640325,0.00036573,2]
[393794075,1762995040627,-1000.5618557,0.0003658,30]
[393794076,1762995040636,-1000.59037472,0.0003658,30]
[393794077,1762995040646,-1000.0,0.0003658,30]
[393794078,1762995040655,-1000.0,0.0003658,30]
[393794080,1762995040665,-189.0,0.00036641,2]
[393794082,1762995040675,-168.7372605,0.00036649,9]
[393794084,1762995040684,-591.48,0.000367,14]
[393794086,1762995040694,-1588.66761652,0.000368,2]
[393794088,1762995040703,-1218.65,0.00036848,30]
[393794090,1762995040713,-150.0,0.00036864,2]
[393794092,1762995040723,-1302.0,0.00036986,30]
[393794094,1762995040734,-500.0,0.00036999,7]
[393794096,1762995040744,-32031.1558659,0.00037,5]
[393794098,1762995040753,-1259.46,0.00037008,2]
[393794100,1762995040762,-585.0,0.00037018,2]
[393794102,1762995040772,-2000.0,0.000371,2]
[393794105,1762995040782,-648.81874007,0.00037155,30]
[393794107,1762995040791,-152.0,0.00037175,4]
[393794108,1762995040802,-266.34,0.00037212,120]
[393794109,1762995040815,-999.0,0.0003726,120]
[393794110,1762995040824,-610.0,0.00037375,2]
[393794111,1762995040834,-1220.61,0.00037377,2]
[393794112,1762995040843,-150.0,0.0003738,7]
[393794113,1762995040854,-233.93239328,0.0003739,14]
[393794114,1762995040864,-175.98,0.00037537,2]
[393794115,1762995040873,-186.0,0.00037722,120]
[393794116,1762995040883,-152.0,0.00037861,5]
[393794117,1762995040893,-332.6,0.000379,30]
[393794118,1762995040903,-1700.0,0.000379,13]
[393794119,1762995040912,-186.0,0.00037902,2]
[393794120,1762995040921,-204.79671333,0.00037982,2]
[393794121,1762995040930,-151.0,0.00037997,14]
[393794122,1762995040941,-13200.0,0.00038,120]
[393794123,1762995040951,-76497.02472379,0.00038,2]
[393794124,1762995040961,-502.02778526,0.00038,120]
[393794125,1762995040970,-29480.25957989,0.00038016,2]
[393794126,1762995040982,-221.45637081,0.00038017,15]
[393794127,1762995040991,-500.0,0.00038029,30]
[393794128,1762995041000,-5888.0,0.00038134,2]
[393794129,1762995041010,-150.0,0.00038192,7]
[393794130,1762995041020,-574.0,0.00038339,2]
[393794131,1762995041029,-3427.0,0.00038339,2]
[393794133,1762995041040,-1317.0,0.00038339,2]
[393794134,1762995041049,-608.0,0.00038339,2]
[393794135,1762995041194,-160.041,0.00038339,2]
[393794136,1762995041203,-1597.0,0.00038339,2]
[393794137,1762995041212,-821.0,0.00038339,2]
[393794138,1762995041223,-813.0,0.00038339,2]
[393794139,1762995041233,-1274.0,0.00038339,2]
[393794140,1762995041243,-6662.0,0.00038339,2]
[393794141,1762995041252,-2143.0,0.00038339,2]
[393794142,1762995041262,-6479.0,0.00038339,2]
[393794143,1762995041272,-1220.61,0.00038394,2]
[393794144,1762995041282,-158.0,0.00038538,2]
[393794145,1762995041291,-152.0,0.00038547,6]
[393794146,1762995041300,-500.0,0.00038548,2]
[393794147,1762995041310,-287.26530748,0.00038555,30]
[393794148,1762995041321,-300.0,0.00038653,2]
[393794149,1762995041330,-300.0,0.000387,2]
[393794150,1762995041340,-300.0,0.00038711,2]
[393794151,1762995041349,-185.0,0.00038726,120]
[393794152,1762995041358,-300.0,0.0003873,2]
[393794153,1762995041367,-591.48,0.000388,14]
[393794154,1762995041376,-289.78,0.00038804,2]
[393794155,1762995041385,-300.0,0.0003887,2]
[393794156,1762995041394,-150.56,0.00038872,2]
[393794157,1762995041403,-150.4,0.00038872,2]
[393794158,1762995041412,-1207.25,0.00038872,2]
[393794159,1762995041424,-176.94,0.00038872,2]
[393794160,1762995041433,-150.0,0.00038872,2]
[393794161,1762995041442,-415.8,0.00038872,2]
[393794162,1762995041451,-338.52,0.00038872,2]
[393794163,1762995041461,-557.09,0.00038872,2]
[393794164,1762995041470,-150.0,0.00038872,2]
[393794165,1762995041479,-300.0,0.00038872,2]
[393794166,1762995041488,-150.0,0.00038872,2]
[393794167,1762995041499,-169.14,0.00038872,2]
[393794168,1762995041508,-150.0,0.00038872,2]
[393794169,1762995041517,-354.28,0.00038872,2]
[393794170,1762995041526,-1207.25,0.00038872,2]
[393794171,1762995041539,-416.24,0.00038872,2]
[393794172,1762995041548,-150.0,0.00038872,2]
[393794173,1762995041557,-549.74,0.00038872,2]
[393794174,1762995041566,-150.0,0.00038872,2]
[393794175,1762995041576,-1207.25,0.00038872,2]
[393794176,1762995041585,-549.74,0.00038872,2]
[393794177,1762995041594,-150.0,0.00038872,2]
[393794178,1762995041603,-416.24,0.00038872,2]
[393794179,1762995041612,-549.74,0.00038872,2]
[393794180,1762995041622,-1207.25,0.00038872,2]
[393794181,1762995041631,-300.0,0.00038872,2]
[393794182,1762995041640,-416.24,0.00038872,2]
[393794183,1762995041649,-1207.25,0.00038872,2]
[393794184,1762995041659,-549.74,0.00038872,2]
[393794185,1762995041668,-1207.25,0.00038872,2]
[393794186,1762995041677,-1205.03,0.00038872,2]
[393794187,1762995041686,-300.0,0.00038877,2]
[393794188,1762995041695,-300.0,0.00038883,2]
[393794189,1762995041704,-510.13117198,0.00038892,30]
[393794190,1762995041713,-300.0,0.0003891,2]
[393794191,1762995041723,-300.0,0.00038948,2]
[393794192,1762995041734,-300.0,0.00038975,2]
[393794193,1762995041743,-300.0,0.00038975,2]
[393794194,1762995041754,-300.0,0.00038994,2]
[393794195,1762995041763,-300.0,0.00038994,2]
[393794196,1762995041773,-150.0,0.00039005,7]
[393794197,1762995041782,-300.0,0.00039045,2]
[393794198,1762995041792,-300.0,0.00039058,2]
[393794199,1762995041801,-300.0,0.00039058,2]
[393794200,1762995041810,-300.0,0.00039094,2]
[393794201,1762995041820,-300.0,0.000391,2]
[393794202,1762995041830,-150.0,0.00039192,120]
[393794203,1762995041841,-1000.0,0.00039208,7]
[393794204,1762995041851,-300.0,0.00039215,2]
[393794205,1762995041860,-300.0,0.00039225,2]
[393794206,1762995041870,-152.0,0.00039232,7]
[393794207,1762995041879,-300.0,0.00039238,2]
[393794208,1762995041888,-300.0,0.00039241,2]
[393794209,1762995041898,-300.0,0.00039274,2]
[393794210,1762995041907,-300.0,0.00039314,2]
[393794211,1762995041917,-300.0,0.00039372,2]
[393794212,1762995041929,-300.0,0.00039394,2]
[393794213,1762995041939,-300.0,0.00039397,2]
[393794214,1762995041948,-5800.0,0.000394,14]
[393794215,1762995041957,-300.0,0.00039407,2]
[393794216,1762995041967,-1220.61,0.0003941,2]
[393794217,1762995041976,-300.0,0.00039417,2]
[393794218,1762995041986,-300.0,0.00039447,2]
[393794219,1762995041995,-714.0,0.00039475,7]
[393794220,1762995042005,-500.0,0.00039496,30]
[393794221,1762995042014,-300.0,0.00039523,2]
[393794222,1762995042024,-300.0,0.00039537,2]
[393794223,1762995042033,-300.0,0.00039561,2]
[393794224,1762995042043,-300.0,0.00039574,2]
[393794225,1762995042052,-300.0,0.00039581,2]
[393794226,1762995042061,-5888.0,0.0003962,7]
[393794227,1762995042071,-300.0,0.00039624,2]
[393794228,1762995042082,-450.0,0.00039649,7]
[393794229,1762995042091,-714.0,0.00039656,120]
[393794230,1762995042100,-500.0,0.00039697,7]
[393794231,1762995042109,-500.0,0.00039697,7]
[393794232,1762995042118,-292.98,0.00039697,7]
[393794233,1762995042127,-300.0,0.000397,2]
[393794234,1762995042136,-300.0,0.00039709,2]
[393794235,1762995042145,-500.0,0.00039717,7]
[393794236,1762995042155,-500.0,0.00039718,7]
[393794237,1762995042164,-356.33,0.00039718,7]
[393794238,1762995042173,-1000.0,0.00039725,120]
[393794239,1762995042182,-300.0,0.00039738,2]
[393794240,1762995042191,-477.21,0.00039753,2]
[393794241,1762995042200,-699.48,0.00039753,2]
[393794242,1762995042210,-699.48,0.00039753,2]
[393794243,1762995042219,-699.48,0.00039753,2]
[393794244,1762995042231,-291.5,0.00039753,2]
[393794245,1762995042241,-300.0,0.00039756,2]
[393794246,1762995042249,-300.0,0.00039765,2]
[393794247,1762995042259,-300.0,0.00039791,2]
[393794248,1762995042268,-300.0,0.00039795,2]
[393794249,1762995042278,-300.0,0.00039802,2]
[393794250,1762995042287,-150.0,0.00039818,7]